{"text_format":"3","workbook":"xlsx","n_sheets":1,"sheets":["Қор тізімі"],"not_rendered":{"defined_names":1},"read":"whole","date_system":"1900"}

{"sheet":"Қор тізімі","index":0,"n_rows":29,"n_cols":12,"rows_kept":29}
[null,null,"Қор тізімі",{"$nulls":7},true]
[]
[]
[null,"Column1","Қор идентификаторы","Аты","Сипаттама","Бірлік бағасы","Қордағы мөлшері","Қор мәні","Деңгейді қайта реттеу","Уақытты күндермен қайта реттеу","Қайта реттеудегі мөлшер","Қысқартылған ба?"]
[null,{"$f":"(КестеМүліктерТізімі[[#This Row],[Қордағы мөлшері]]<=КестеМүліктерТізімі[[#This Row],[Деңгейді қайта реттеу]])*(КестеМүліктерТізімі[[#This Row],[Қысқартылған ба?]]=\"\")*МәнАстынсызу","v":1},"IN0001","1-элемент","1-сипаттама",{"v":51,"d":"Т51.00"},25,{"$f":"КестеМүліктерТізімі[[#This Row],[Бірлік бағасы]]*КестеМүліктерТізімі[[#This Row],[Қордағы мөлшері]]","v":{"v":1275,"d":"Т1,275.00"}},29,13,50,""]
[null,{"$f":"(КестеМүліктерТізімі[[#This Row],[Қордағы мөлшері]]<=КестеМүліктерТізімі[[#This Row],[Деңгейді қайта реттеу]])*(КестеМүліктерТізімі[[#This Row],[Қысқартылған ба?]]=\"\")*МәнАстынсызу","v":1},"IN0002","2-элемент","2-сипаттама",{"v":93,"d":"Т93.00"},132,{"$f":"КестеМүліктерТізімі[[#This Row],[Бірлік бағасы]]*КестеМүліктерТізімі[[#This Row],[Қордағы мөлшері]]","v":{"v":12276,"d":"Т12,276.00"}},231,4,50,""]
[null,{"$f":"(КестеМүліктерТізімі[[#This Row],[Қордағы мөлшері]]<=КестеМүліктерТізімі[[#This Row],[Деңгейді қайта реттеу]])*(КестеМүліктерТізімі[[#This Row],[Қысқартылған ба?]]=\"\")*МәнАстынсызу","v":0},"IN0003","3-элемент","3-сипаттама",{"v":57,"d":"Т57.00"},151,{"$f":"КестеМүліктерТізімі[[#This Row],[Бірлік бағасы]]*КестеМүліктерТізімі[[#This Row],[Қордағы мөлшері]]","v":{"v":8607,"d":"Т8,607.00"}},114,11,150,""]
[null,{"$f":"(КестеМүліктерТізімі[[#This Row],[Қордағы мөлшері]]<=КестеМүліктерТізімі[[#This Row],[Деңгейді қайта реттеу]])*(КестеМүліктерТізімі[[#This Row],[Қысқартылған ба?]]=\"\")*МәнАстынсызу","v":0},"IN0004","4-элемент","4-сипаттама",{"v":19,"d":"Т19.00"},186,{"$f":"КестеМүліктерТізімі[[#This Row],[Бірлік бағасы]]*КестеМүліктерТізімі[[#This Row],[Қордағы мөлшері]]","v":{"v":3534,"d":"Т3,534.00"}},158,6,50,""]
[null,{"$f":"(КестеМүліктерТізімі[[#This Row],[Қордағы мөлшері]]<=КестеМүліктерТізімі[[#This Row],[Деңгейді қайта реттеу]])*(КестеМүліктерТізімі[[#This Row],[Қысқартылған ба?]]=\"\")*МәнАстынсызу","v":0},"IN0005","5-элемент","5-сипаттама",{"v":75,"d":"Т75.00"},62,{"$f":"КестеМүліктерТізімі[[#This Row],[Бірлік бағасы]]*КестеМүліктерТізімі[[#This Row],[Қордағы мөлшері]]","v":{"v":4650,"d":"Т4,650.00"}},39,12,50,""]
[null,{"$f":"(КестеМүліктерТізімі[[#This Row],[Қордағы мөлшері]]<=КестеМүліктерТізімі[[#This Row],[Деңгейді қайта реттеу]])*(КестеМүліктерТізімі[[#This Row],[Қысқартылған ба?]]=\"\")*МәнАстынсызу","v":1},"IN0006","6-элемент","6-сипаттама",{"v":11,"d":"Т11.00"},5,{"$f":"КестеМүліктерТізімі[[#This Row],[Бірлік бағасы]]*КестеМүліктерТізімі[[#This Row],[Қордағы мөлшері]]","v":{"v":55,"d":"Т55.00"}},9,13,150,""]
[null,{"$f":"(КестеМүліктерТізімі[[#This Row],[Қордағы мөлшері]]<=КестеМүліктерТізімі[[#This Row],[Деңгейді қайта реттеу]])*(КестеМүліктерТізімі[[#This Row],[Қысқартылған ба?]]=\"\")*МәнАстынсызу","v":1},"IN0007","7-элемент","7-сипаттама",{"v":56,"d":"Т56.00"},58,{"$f":"КестеМүліктерТізімі[[#This Row],[Бірлік бағасы]]*КестеМүліктерТізімі[[#This Row],[Қордағы мөлшері]]","v":{"v":3248,"d":"Т3,248.00"}},109,7,100,""]
[null,{"$f":"(КестеМүліктерТізімі[[#This Row],[Қордағы мөлшері]]<=КестеМүліктерТізімі[[#This Row],[Деңгейді қайта реттеу]])*(КестеМүліктерТізімі[[#This Row],[Қысқартылған ба?]]=\"\")*МәнАстынсызу","v":1},"IN0008","8-элемент","8-сипаттама",{"v":38,"d":"Т38.00"},101,{"$f":"КестеМүліктерТізімі[[#This Row],[Бірлік бағасы]]*КестеМүліктерТізімі[[#This Row],[Қордағы мөлшері]]","v":{"v":3838,"d":"Т3,838.00"}},162,3,100,""]
[null,{"$f":"(КестеМүліктерТізімі[[#This Row],[Қордағы мөлшері]]<=КестеМүліктерТізімі[[#This Row],[Деңгейді қайта реттеу]])*(КестеМүліктерТізімі[[#This Row],[Қысқартылған ба?]]=\"\")*МәнАстынсызу","v":0},"IN0009","9-элемент","9-сипаттама",{"v":59,"d":"Т59.00"},122,{"$f":"КестеМүліктерТізімі[[#This Row],[Бірлік бағасы]]*КестеМүліктерТізімі[[#This Row],[Қордағы мөлшері]]","v":{"v":7198,"d":"Т7,198.00"}},82,3,150,""]
[null,{"$f":"(КестеМүліктерТізімі[[#This Row],[Қордағы мөлшері]]<=КестеМүліктерТізімі[[#This Row],[Деңгейді қайта реттеу]])*(КестеМүліктерТізімі[[#This Row],[Қысқартылған ба?]]=\"\")*МәнАстынсызу","v":1},"IN0010","10-элемент","10-сипаттама",{"v":50,"d":"Т50.00"},175,{"$f":"КестеМүліктерТізімі[[#This Row],[Бірлік бағасы]]*КестеМүліктерТізімі[[#This Row],[Қордағы мөлшері]]","v":{"v":8750,"d":"Т8,750.00"}},283,8,150,""]
[null,{"$f":"(КестеМүліктерТізімі[[#This Row],[Қордағы мөлшері]]<=КестеМүліктерТізімі[[#This Row],[Деңгейді қайта реттеу]])*(КестеМүліктерТізімі[[#This Row],[Қысқартылған ба?]]=\"\")*МәнАстынсызу","v":1},"IN0011","11-элемент","11-сипаттама",{"v":59,"d":"Т59.00"},176,{"$f":"КестеМүліктерТізімі[[#This Row],[Бірлік бағасы]]*КестеМүліктерТізімі[[#This Row],[Қордағы мөлшері]]","v":{"v":10384,"d":"Т10,384.00"}},229,1,100,""]
[null,{"$f":"(КестеМүліктерТізімі[[#This Row],[Қордағы мөлшері]]<=КестеМүліктерТізімі[[#This Row],[Деңгейді қайта реттеу]])*(КестеМүліктерТізімі[[#This Row],[Қысқартылған ба?]]=\"\")*МәнАстынсызу","v":1},"IN0012","12-элемент","12-сипаттама",{"v":18,"d":"Т18.00"},22,{"$f":"КестеМүліктерТізімі[[#This Row],[Бірлік бағасы]]*КестеМүліктерТізімі[[#This Row],[Қордағы мөлшері]]","v":{"v":396,"d":"Т396.00"}},36,12,50,""]
[null,{"$f":"(КестеМүліктерТізімі[[#This Row],[Қордағы мөлшері]]<=КестеМүліктерТізімі[[#This Row],[Деңгейді қайта реттеу]])*(КестеМүліктерТізімі[[#This Row],[Қысқартылған ба?]]=\"\")*МәнАстынсызу","v":1},"IN0013","13-элемент","13-сипаттама",{"v":26,"d":"Т26.00"},72,{"$f":"КестеМүліктерТізімі[[#This Row],[Бірлік бағасы]]*КестеМүліктерТізімі[[#This Row],[Қордағы мөлшері]]","v":{"v":1872,"d":"Т1,872.00"}},102,9,100,""]
[null,{"$f":"(КестеМүліктерТізімі[[#This Row],[Қордағы мөлшері]]<=КестеМүліктерТізімі[[#This Row],[Деңгейді қайта реттеу]])*(КестеМүліктерТізімі[[#This Row],[Қысқартылған ба?]]=\"\")*МәнАстынсызу","v":1},"IN0014","14-элемент","14-сипаттама",{"v":42,"d":"Т42.00"},62,{"$f":"КестеМүліктерТізімі[[#This Row],[Бірлік бағасы]]*КестеМүліктерТізімі[[#This Row],[Қордағы мөлшері]]","v":{"v":2604,"d":"Т2,604.00"}},83,2,100,""]
[null,{"$f":"(КестеМүліктерТізімі[[#This Row],[Қордағы мөлшері]]<=КестеМүліктерТізімі[[#This Row],[Деңгейді қайта реттеу]])*(КестеМүліктерТізімі[[#This Row],[Қысқартылған ба?]]=\"\")*МәнАстынсызу","v":0},"IN0015","15-элемент","15-сипаттама",{"v":32,"d":"Т32.00"},46,{"$f":"КестеМүліктерТізімі[[#This Row],[Бірлік бағасы]]*КестеМүліктерТізімі[[#This Row],[Қордағы мөлшері]]","v":{"v":1472,"d":"Т1,472.00"}},23,15,50,""]
[null,{"$f":"(КестеМүліктерТізімі[[#This Row],[Қордағы мөлшері]]<=КестеМүліктерТізімі[[#This Row],[Деңгейді қайта реттеу]])*(КестеМүліктерТізімі[[#This Row],[Қысқартылған ба?]]=\"\")*МәнАстынсызу","v":1},"IN0016","16-элемент","16-сипаттама",{"v":90,"d":"Т90.00"},96,{"$f":"КестеМүліктерТізімі[[#This Row],[Бірлік бағасы]]*КестеМүліктерТізімі[[#This Row],[Қордағы мөлшері]]","v":{"v":8640,"d":"Т8,640.00"}},180,3,50,""]
[null,{"$f":"(КестеМүліктерТізімі[[#This Row],[Қордағы мөлшері]]<=КестеМүліктерТізімі[[#This Row],[Деңгейді қайта реттеу]])*(КестеМүліктерТізімі[[#This Row],[Қысқартылған ба?]]=\"\")*МәнАстынсызу","v":0},"IN0017","17-элемент","17-сипаттама",{"v":97,"d":"Т97.00"},57,{"$f":"КестеМүліктерТізімі[[#This Row],[Бірлік бағасы]]*КестеМүліктерТізімі[[#This Row],[Қордағы мөлшері]]","v":{"v":5529,"d":"Т5,529.00"}},98,12,50,"Иә"]
[null,{"$f":"(КестеМүліктерТізімі[[#This Row],[Қордағы мөлшері]]<=КестеМүліктерТізімі[[#This Row],[Деңгейді қайта реттеу]])*(КестеМүліктерТізімі[[#This Row],[Қысқартылған ба?]]=\"\")*МәнАстынсызу","v":1},"IN0018","18-элемент","18-сипаттама",{"v":12,"d":"Т12.00"},6,{"$f":"КестеМүліктерТізімі[[#This Row],[Бірлік бағасы]]*КестеМүліктерТізімі[[#This Row],[Қордағы мөлшері]]","v":{"v":72,"d":"Т72.00"}},7,13,50,""]
[null,{"$f":"(КестеМүліктерТізімі[[#This Row],[Қордағы мөлшері]]<=КестеМүліктерТізімі[[#This Row],[Деңгейді қайта реттеу]])*(КестеМүліктерТізімі[[#This Row],[Қысқартылған ба?]]=\"\")*МәнАстынсызу","v":1},"IN0019","19-элемент","19-сипаттама",{"v":82,"d":"Т82.00"},143,{"$f":"КестеМүліктерТізімі[[#This Row],[Бірлік бағасы]]*КестеМүліктерТізімі[[#This Row],[Қордағы мөлшері]]","v":{"v":11726,"d":"Т11,726.00"}},164,12,150]
[null,{"$f":"(КестеМүліктерТізімі[[#This Row],[Қордағы мөлшері]]<=КестеМүліктерТізімі[[#This Row],[Деңгейді қайта реттеу]])*(КестеМүліктерТізімі[[#This Row],[Қысқартылған ба?]]=\"\")*МәнАстынсызу","v":0},"IN0020","20-элемент","20-сипаттама",{"v":16,"d":"Т16.00"},124,{"$f":"КестеМүліктерТізімі[[#This Row],[Бірлік бағасы]]*КестеМүліктерТізімі[[#This Row],[Қордағы мөлшері]]","v":{"v":1984,"d":"Т1,984.00"}},113,14,50,""]
[null,{"$f":"(КестеМүліктерТізімі[[#This Row],[Қордағы мөлшері]]<=КестеМүліктерТізімі[[#This Row],[Деңгейді қайта реттеу]])*(КестеМүліктерТізімі[[#This Row],[Қысқартылған ба?]]=\"\")*МәнАстынсызу","v":0},"IN0021","21-элемент","21-сипаттама",{"v":19,"d":"Т19.00"},112,{"$f":"КестеМүліктерТізімі[[#This Row],[Бірлік бағасы]]*КестеМүліктерТізімі[[#This Row],[Қордағы мөлшері]]","v":{"v":2128,"d":"Т2,128.00"}},75,11,50,""]
[null,{"$f":"(КестеМүліктерТізімі[[#This Row],[Қордағы мөлшері]]<=КестеМүліктерТізімі[[#This Row],[Деңгейді қайта реттеу]])*(КестеМүліктерТізімі[[#This Row],[Қысқартылған ба?]]=\"\")*МәнАстынсызу","v":0},"IN0022","22-элемент","22-сипаттама",{"v":24,"d":"Т24.00"},182,{"$f":"КестеМүліктерТізімі[[#This Row],[Бірлік бағасы]]*КестеМүліктерТізімі[[#This Row],[Қордағы мөлшері]]","v":{"v":4368,"d":"Т4,368.00"}},132,15,150,""]
[null,{"$f":"(КестеМүліктерТізімі[[#This Row],[Қордағы мөлшері]]<=КестеМүліктерТізімі[[#This Row],[Деңгейді қайта реттеу]])*(КестеМүліктерТізімі[[#This Row],[Қысқартылған ба?]]=\"\")*МәнАстынсызу","v":0},"IN0023","23-элемент","23-сипаттама",{"v":29,"d":"Т29.00"},106,{"$f":"КестеМүліктерТізімі[[#This Row],[Бірлік бағасы]]*КестеМүліктерТізімі[[#This Row],[Қордағы мөлшері]]","v":{"v":3074,"d":"Т3,074.00"}},142,1,150,"Иә"]
[null,{"$f":"(КестеМүліктерТізімі[[#This Row],[Қордағы мөлшері]]<=КестеМүліктерТізімі[[#This Row],[Деңгейді қайта реттеу]])*(КестеМүліктерТізімі[[#This Row],[Қысқартылған ба?]]=\"\")*МәнАстынсызу","v":0},"IN0024","24-элемент","24-сипаттама",{"v":75,"d":"Т75.00"},173,{"$f":"КестеМүліктерТізімі[[#This Row],[Бірлік бағасы]]*КестеМүліктерТізімі[[#This Row],[Қордағы мөлшері]]","v":{"v":12975,"d":"Т12,975.00"}},127,9,100,""]
[null,{"$f":"(КестеМүліктерТізімі[[#This Row],[Қордағы мөлшері]]<=КестеМүліктерТізімі[[#This Row],[Деңгейді қайта реттеу]])*(КестеМүліктерТізімі[[#This Row],[Қысқартылған ба?]]=\"\")*МәнАстынсызу","v":0},"IN0025","25-элемент","25-сипаттама",{"v":14,"d":"Т14.00"},28,{"$f":"КестеМүліктерТізімі[[#This Row],[Бірлік бағасы]]*КестеМүліктерТізімі[[#This Row],[Қордағы мөлшері]]","v":{"v":392,"d":"Т392.00"}},21,8,50,""]